[Event "Late-Titled-Tuesday-Blitz-October-24-2023"]
[Site "Chess.com"]
[Date "2023.10.24"]
[Round "4"]
[White "Byniolus"]
[Black "bipe137"]
[Result "1-0"]
[WhiteElo "2802"]
[BlackElo "2591"]
[TimeControl "180+1"]
[EndTime "14:39:55 PDT"]
[Termination "Byniolus won on time"]

1. d4 {[%clk 0:03:00.9]} 1... d5 {[%clk 0:02:51]} 2. Bf4 {[%clk 0:03:00.6]} 2...
Nf6 {[%clk 0:02:49.9]} 3. e3 {[%clk 0:03:00.8]} 3... c5 {[%clk 0:02:49.4]} 4. c3
{[%clk 0:03:01.1]} 4... Nc6 {[%clk 0:02:49.7]} 5. Nd2 {[%clk 0:03:01.4]} 5...
cxd4 {[%clk 0:02:47.8]} 6. cxd4 {[%clk 0:03:01.2]} 6... Bg4 {[%clk 0:02:43.9]}
7. Ngf3 {[%clk 0:02:57.6]} 7... Bxf3 {[%clk 0:02:42.9]} 8. Nxf3 {[%clk
0:02:40.4]} 8... e5 {[%clk 0:02:42.7]} 9. Nxe5 {[%clk 0:02:31.8]} 9... Bb4+
{[%clk 0:02:39.5]} 10. Ke2 {[%clk 0:02:32.2]} 10... Qb6 {[%clk 0:02:20.9]} 11.
Nd3 {[%clk 0:02:09.5]} 11... O-O {[%clk 0:02:16.7]} 12. f3 {[%clk 0:02:00.2]}
12... Rfe8 {[%clk 0:02:06.5]} 13. Kf2 {[%clk 0:01:54]} 13... Nh5 {[%clk
0:02:02]} 14. Be5 {[%clk 0:01:27.8]} 14... f6 {[%clk 0:01:54.8]} 15. Bg3 {[%clk
0:01:28]} 15... Rac8 {[%clk 0:01:47.3]} 16. Qb3 {[%clk 0:01:14.4]} 16... Bd2
{[%clk 0:01:25.5]} 17. Qxd5+ {[%clk 0:00:44]} 17... Kh8 {[%clk 0:01:22.4]} 18.
Be2 {[%clk 0:00:32.4]} 18... Bxe3+ {[%clk 0:01:20]} 19. Kf1 {[%clk 0:00:31.5]}
19... Nxd4 {[%clk 0:01:17.1]} 20. Re1 {[%clk 0:00:11.2]} 20... Nc2 {[%clk
0:01:14.9]} 21. Qxh5 {[%clk 0:00:09.1]} 21... g6 {[%clk 0:00:33.3]} 22. Qh4
{[%clk 0:00:06.2]} 22... Bg1 {[%clk 0:00:21.2]} 23. Bf2 {[%clk 0:00:05.6]} 23...
Bxf2 {[%clk 0:00:08.6]} 24. Qxf2 {[%clk 0:00:06.5]} 24... Qe6 {[%clk 0:00:03.9]}
25. g3 {[%clk 0:00:03.5]} 25... Ne3+ {[%clk 0:00:04.5]} 26. Kg1 {[%clk
0:00:03.7]} 26... Qxa2 {[%clk 0:00:05.4]} 27. h4 {[%clk 0:00:03.6]} 27... Rc2
{[%clk 0:00:05.8]} 28. Nf4 {[%clk 0:00:03.8]} 28... Nf5 {[%clk 0:00:05.1]} 29.
Rh2 {[%clk 0:00:01.9]} 29... Qxb2 {[%clk 0:00:05.5]} 30. Bf1 {[%clk 0:00:01.3]}
30... Rxf2 {[%clk 0:00:03.6]} 31. Rxe8+ {[%clk 0:00:01.5]} 31... Kg7 {[%clk
0:00:04.2]} 32. Rxf2 {[%clk 0:00:02.3]} 32... Qd4 {[%clk 0:00:04.6]} 33. Rc8
{[%clk 0:00:01.9]} 33... Nxg3 {[%clk 0:00:04.7]} 34. Ne6+ {[%clk 0:00:02.1]}
34... Kh6 {[%clk 0:00:04.3]} 35. Nxd4 {[%clk 0:00:03]} 35... Ne2+ {[%clk
0:00:03.6]} 36. Bxe2 {[%clk 0:00:03.3]} 1-0

[Event "Late-Titled-Tuesday-Blitz-October-24-2023"]
[Site "Chess.com"]
[Date "2023.10.24"]
[Round "4"]
[White "Mariia89"]
[Black "becemix"]
[Result "1-0"]
[WhiteElo "2194"]
[BlackElo "2370"]
[TimeControl "180+1"]
[EndTime "14:40:01 PDT"]
[Termination "Mariia89 won on time"]

1. d4 {[%clk 0:02:59.7]} 1... e6 {[%clk 0:03:00.6]} 2. Nf3 {[%clk 0:03:00]} 2...
Nf6 {[%clk 0:03:01.3]} 3. Bg5 {[%clk 0:03:00.5]} 3... d5 {[%clk 0:03:01.5]} 4.
e3 {[%clk 0:02:59.7]} 4... Nbd7 {[%clk 0:02:57]} 5. Bd3 {[%clk 0:02:59.4]} 5...
Be7 {[%clk 0:02:57.6]} 6. c3 {[%clk 0:02:59.4]} 6... c5 {[%clk 0:02:52.3]} 7.
Nbd2 {[%clk 0:02:58.7]} 7... O-O {[%clk 0:02:51.7]} 8. Ne5 {[%clk 0:02:58.9]}
8... cxd4 {[%clk 0:02:51]} 9. exd4 {[%clk 0:02:59.2]} 9... h6 {[%clk 0:02:40.6]}
10. Bh4 {[%clk 0:02:53.6]} 10... Nxe5 {[%clk 0:02:34.5]} 11. dxe5 {[%clk
0:02:53.4]} 11... Nd7 {[%clk 0:02:34.8]} 12. Bg3 {[%clk 0:02:53.3]} 12... Nc5
{[%clk 0:02:22.4]} 13. Bc2 {[%clk 0:02:48.6]} 13... d4 {[%clk 0:02:21.6]} 14.
cxd4 {[%clk 0:02:38.7]} 14... Qxd4 {[%clk 0:02:20.6]} 15. O-O {[%clk 0:02:38.4]}
15... Qxb2 {[%clk 0:02:10.4]} 16. Nc4 {[%clk 0:02:04.5]} 16... Qc3 {[%clk
0:01:58.3]} 17. Nd6 {[%clk 0:02:01.6]} 17... Rd8 {[%clk 0:01:46.5]} 18. Rc1
{[%clk 0:01:54.9]} 18... Qb4 {[%clk 0:01:24.5]} 19. Qf3 {[%clk 0:01:37.1]} 19...
Bxd6 {[%clk 0:01:18.8]} 20. exd6 {[%clk 0:01:36.1]} 20... Nd7 {[%clk 0:01:15.8]}
21. Rfd1 {[%clk 0:01:18.9]} 21... Nf6 {[%clk 0:01:15.3]} 22. Be5 {[%clk
0:01:18.4]} 22... Qg4 {[%clk 0:00:58.1]} 23. Qd3 {[%clk 0:01:14.9]} 23... Kf8
{[%clk 0:00:17.3]} 24. h3 {[%clk 0:01:06.9]} 24... Qg5 {[%clk 0:00:15]} 25. Bxf6
{[%clk 0:00:54.2]} 25... gxf6 {[%clk 0:00:12.4]} 26. Qh7 {[%clk 0:00:49.7]}
26... Qg7 {[%clk 0:00:12]} 27. Qd3 {[%clk 0:00:46.3]} 27... Bd7 {[%clk
0:00:11.8]} 28. Bb3 {[%clk 0:00:38]} 28... Bc6 {[%clk 0:00:12]} 29. g3 {[%clk
0:00:37.9]} 29... Qg5 {[%clk 0:00:11.2]} 30. Rc4 {[%clk 0:00:26.7]} 30... Qg6
{[%clk 0:00:11.2]} 31. Qd2 {[%clk 0:00:23.1]} 31... Qf5 {[%clk 0:00:10.8]} 32.
Rf4 {[%clk 0:00:22.9]} 32... Qc5 {[%clk 0:00:08]} 33. Rg4 {[%clk 0:00:19.9]}
33... h5 {[%clk 0:00:03.9]} 34. Qh6+ {[%clk 0:00:19]} 34... Ke8 {[%clk 0:00:04]}
35. d7+ {[%clk 0:00:12.5]} 35... Bxd7 {[%clk 0:00:02]} 36. Rg7 {[%clk
0:00:07.7]} 1-0

[Event "Late-Titled-Tuesday-Blitz-October-24-2023"]
[Site "Chess.com"]
[Date "2023.10.24"]
[Round "4"]
[White "Elsa167"]
[Black "Apocalyps999"]
[Result "1-0"]
[WhiteElo "2903"]
[BlackElo "2331"]
[TimeControl "180+1"]
[EndTime "14:40:02 PDT"]
[Termination "Elsa167 won on time"]

1. d4 {[%clk 0:03:00.9]} 1... Nf6 {[%clk 0:02:59.4]} 2. c4 {[%clk 0:02:55.9]}
2... e6 {[%clk 0:02:59.4]} 3. Nf3 {[%clk 0:02:55.8]} 3... d5 {[%clk 0:02:56.7]}
4. Nc3 {[%clk 0:02:56]} 4... Be7 {[%clk 0:02:55.1]} 5. g3 {[%clk 0:02:48]} 5...
O-O {[%clk 0:02:54.3]} 6. Bg2 {[%clk 0:02:48.6]} 6... dxc4 {[%clk 0:02:53.7]} 7.
Ne5 {[%clk 0:02:49]} 7... Nc6 {[%clk 0:02:53.5]} 8. Bxc6 {[%clk 0:02:48.7]} 8...
bxc6 {[%clk 0:02:54]} 9. Nxc6 {[%clk 0:02:49.6]} 9... Qe8 {[%clk 0:02:54.3]} 10.
Nxe7+ {[%clk 0:02:50.2]} 10... Qxe7 {[%clk 0:02:55.2]} 11. Qa4 {[%clk
0:02:50.7]} 11... c5 {[%clk 0:02:55.5]} 12. dxc5 {[%clk 0:02:50.2]} 12... Qxc5
{[%clk 0:02:56.4]} 13. Be3 {[%clk 0:02:50.7]} 13... Qc7 {[%clk 0:02:57.1]} 14.
f3 {[%clk 0:02:47.6]} 14... Bb7 {[%clk 0:02:54.6]} 15. Qa3 {[%clk 0:02:41.1]}
15... Nd5 {[%clk 0:02:50.6]} 16. Nxd5 {[%clk 0:02:41.2]} 16... Bxd5 {[%clk
0:02:51.5]} 17. Qc3 {[%clk 0:02:20]} 17... a5 {[%clk 0:02:41.9]} 18. Bd4 {[%clk
0:02:16.8]} 18... f5 {[%clk 0:02:41]} 19. O-O {[%clk 0:02:12.7]} 19... Qb7
{[%clk 0:02:37.5]} 20. Rad1 {[%clk 0:02:04.2]} 20... a4 {[%clk 0:02:13.9]} 21.
a3 {[%clk 0:02:03.8]} 21... h6 {[%clk 0:02:04.1]} 22. Qe3 {[%clk 0:02:03.5]}
22... Kh7 {[%clk 0:01:56.8]} 23. Bc3 {[%clk 0:02:02.9]} 23... Qf7 {[%clk
0:01:52.3]} 24. Qe5 {[%clk 0:02:02.9]} 24... Ra7 {[%clk 0:01:42.6]} 25. Rd2
{[%clk 0:01:55.9]} 25... Rd7 {[%clk 0:01:31.6]} 26. Rfd1 {[%clk 0:01:55.8]}
26... Rfd8 {[%clk 0:01:24.9]} 27. Ba5 {[%clk 0:01:53]} 27... Ra8 {[%clk
0:01:23.9]} 28. Bc3 {[%clk 0:01:53.2]} 28... Rad8 {[%clk 0:01:23.6]} 29. Rd4
{[%clk 0:01:52.7]} 29... Bc6 {[%clk 0:01:20.2]} 30. Kf2 {[%clk 0:01:34.8]} 30...
Rxd4 {[%clk 0:01:14.2]} 31. Rxd4 {[%clk 0:01:35.7]} 31... Rxd4 {[%clk
0:01:14.1]} 32. Bxd4 {[%clk 0:01:36.3]} 32... Bd5 {[%clk 0:01:09.6]} 33. h3
{[%clk 0:01:29.6]} 33... g5 {[%clk 0:00:49.1]} 34. Qh8+ {[%clk 0:01:19.9]} 34...
Kg6 {[%clk 0:00:48.3]} 35. g4 {[%clk 0:01:20.1]} 35... Bc6 {[%clk 0:00:21.7]}
36. Qd8 {[%clk 0:01:05.1]} 36... h5 {[%clk 0:00:11.1]} 37. gxh5+ {[%clk
0:00:34.5]} 37... Kxh5 {[%clk 0:00:10.4]} 38. Qh8+ {[%clk 0:00:34.9]} 38... Kg6
{[%clk 0:00:10.7]} 39. h4 {[%clk 0:00:34.7]} 39... gxh4 {[%clk 0:00:09.6]} 40.
Qxh4 {[%clk 0:00:35.6]} 40... Bd5 {[%clk 0:00:07]} 41. Kg3 {[%clk 0:00:31.1]}
41... Bc6 {[%clk 0:00:03.8]} 42. Kf4 {[%clk 0:00:26.3]} 42... Bd5 {[%clk
0:00:02.4]} 43. Qg5+ {[%clk 0:00:24.1]} 43... Kh7 {[%clk 0:00:02.8]} 44. Be5
{[%clk 0:00:23.1]} 44... Qg6 {[%clk 0:00:02.1]} 45. Qe7+ {[%clk 0:00:23.4]}
45... Kh6 {[%clk 0:00:02.7]} 46. Ke3 {[%clk 0:00:21.4]} 46... Qg5+ {[%clk
0:00:02.7]} 47. Bf4 {[%clk 0:00:21.8]} 1-0

[Event "Late-Titled-Tuesday-Blitz-October-24-2023"]
[Site "Chess.com"]
[Date "2023.10.24"]
[Round "4"]
[White "HeroRubiksCube"]
[Black "Nick12772"]
[Result "0-1"]
[WhiteElo "2532"]
[BlackElo "2383"]
[TimeControl "180+1"]
[EndTime "14:40:02 PDT"]
[Termination "Nick12772 won by resignation"]

1. e4 {[%clk 0:03:00.9]} 1... e6 {[%clk 0:03:00.2]} 2. d3 {[%clk 0:02:59.7]}
2... d5 {[%clk 0:03:01.1]} 3. Nd2 {[%clk 0:03:00.1]} 3... Nc6 {[%clk 0:03:00.6]}
4. g3 {[%clk 0:02:59.6]} 4... Nf6 {[%clk 0:03:01]} 5. Bg2 {[%clk 0:02:59.7]}
5... dxe4 {[%clk 0:03:01.6]} 6. dxe4 {[%clk 0:02:59.5]} 6... e5 {[%clk
0:03:02.1]} 7. Ngf3 {[%clk 0:02:58]} 7... Bc5 {[%clk 0:03:02.4]} 8. O-O {[%clk
0:02:58]} 8... O-O {[%clk 0:03:01.4]} 9. c3 {[%clk 0:02:58.4]} 9... a5 {[%clk
0:03:01.1]} 10. Qc2 {[%clk 0:02:52.2]} 10... Qe7 {[%clk 0:02:59.8]} 11. Nb3
{[%clk 0:02:51.8]} 11... Bb6 {[%clk 0:02:52]} 12. Bg5 {[%clk 0:02:49]} 12... h6
{[%clk 0:02:45.8]} 13. Bxf6 {[%clk 0:02:47.9]} 13... Qxf6 {[%clk 0:02:46.7]} 14.
Nbd2 {[%clk 0:02:34.5]} 14... Be6 {[%clk 0:02:36.3]} 15. Rfd1 {[%clk 0:02:30.2]}
15... Rfd8 {[%clk 0:02:34.1]} 16. b3 {[%clk 0:02:17.7]} 16... Rd7 {[%clk
0:02:28.5]} 17. Nf1 {[%clk 0:02:17.6]} 17... Rad8 {[%clk 0:02:26.9]} 18. h4
{[%clk 0:02:15.6]} 18... Bg4 {[%clk 0:02:16.1]} 19. N1h2 {[%clk 0:02:14]} 19...
Be6 {[%clk 0:02:10.2]} 20. Rxd7 {[%clk 0:02:12]} 20... Rxd7 {[%clk 0:02:09.9]}
21. Rd1 {[%clk 0:02:12.4]} 21... Qd8 {[%clk 0:02:07.8]} 22. Rxd7 {[%clk
0:01:56.1]} 22... Qxd7 {[%clk 0:02:08.7]} 23. Qe2 {[%clk 0:01:54.9]} 23... Qd6
{[%clk 0:01:54.8]} 24. h5 {[%clk 0:01:48.3]} 24... Qc5 {[%clk 0:01:54.5]} 25.
Qd2 {[%clk 0:01:42.2]} 25... Kh7 {[%clk 0:01:51.1]} 26. Nh4 {[%clk 0:01:38.9]}
26... Ne7 {[%clk 0:01:40.8]} 27. Nf1 {[%clk 0:01:31.3]} 27... Qd6 {[%clk
0:01:34.6]} 28. Qxd6 {[%clk 0:01:27.5]} 28... cxd6 {[%clk 0:01:35.5]} 29. Nd2
{[%clk 0:01:23.6]} 29... Kg8 {[%clk 0:01:28.1]} 30. Kf1 {[%clk 0:01:20.1]} 30...
a4 {[%clk 0:01:20.7]} 31. c4 {[%clk 0:01:15.5]} 31... axb3 {[%clk 0:01:18.7]}
32. axb3 {[%clk 0:01:16.4]} 32... Kf8 {[%clk 0:01:12.8]} 33. Ke2 {[%clk
0:01:12.7]} 33... Ke8 {[%clk 0:01:12.8]} 34. f4 {[%clk 0:01:09]} 34... f6 {[%clk
0:01:05.1]} 35. Bf3 {[%clk 0:01:03.6]} 35... Nc6 {[%clk 0:00:58.4]} 36. Ng2
{[%clk 0:00:54]} 36... Nd4+ {[%clk 0:00:57.9]} 37. Kd3 {[%clk 0:00:54.4]} 37...
Ba5 {[%clk 0:00:56.9]} 38. Bd1 {[%clk 0:00:50.1]} 38... Bxd2 {[%clk 0:00:50.1]}
39. Kxd2 {[%clk 0:00:51]} 39... Bf7 {[%clk 0:00:48]} 40. Ne3 {[%clk 0:00:48.4]}
40... Kd7 {[%clk 0:00:45.2]} 41. Kd3 {[%clk 0:00:43.6]} 41... Kc6 {[%clk
0:00:43.4]} 42. b4 {[%clk 0:00:38.9]} 42... b5 {[%clk 0:00:39.5]} 43. fxe5
{[%clk 0:00:17.5]} 43... dxe5 {[%clk 0:00:36.9]} 44. Nd5 {[%clk 0:00:17.6]}
44... bxc4+ {[%clk 0:00:34.4]} 45. Kxc4 {[%clk 0:00:18.5]} 45... Kd6 {[%clk
0:00:25.6]} 46. b5 {[%clk 0:00:16.8]} 46... f5 {[%clk 0:00:20.3]} 47. b6 {[%clk
0:00:03.1]} 47... fxe4 {[%clk 0:00:19.8]} 48. b7 {[%clk 0:00:03.3]} 48... Bxd5+
{[%clk 0:00:19.9]} 0-1

[Event "Late-Titled-Tuesday-Blitz-October-24-2023"]
[Site "Chess.com"]
[Date "2023.10.24"]
[Round "4"]
[White "Chessdreamer2020"]
[Black "AsselLesbekova"]
[Result "0-1"]
[WhiteElo "2480"]
[BlackElo "2300"]
[TimeControl "180+1"]
[EndTime "14:40:03 PDT"]
[Termination "AsselLesbekova won on time"]

1. e4 {[%clk 0:03:00]} 1... e5 {[%clk 0:03:00.1]} 2. Nf3 {[%clk 0:02:59.3]} 2...
Nf6 {[%clk 0:03:00.5]} 3. Nc3 {[%clk 0:02:56.6]} 3... Nc6 {[%clk 0:03:00.1]} 4.
d4 {[%clk 0:02:55.4]} 4... exd4 {[%clk 0:03:01]} 5. Nxd4 {[%clk 0:02:56.3]} 5...
Nxe4 {[%clk 0:02:58.9]} 6. Nxe4 {[%clk 0:02:51.4]} 6... Qe7 {[%clk 0:02:59]} 7.
f3 {[%clk 0:02:16.3]} 7... d5 {[%clk 0:02:48.9]} 8. Bb5 {[%clk 0:02:14.6]} 8...
Bd7 {[%clk 0:02:18.7]} 9. Bxc6 {[%clk 0:02:13.9]} 9... bxc6 {[%clk 0:02:19.3]}
10. O-O {[%clk 0:02:12.6]} 10... dxe4 {[%clk 0:02:16.4]} 11. fxe4 {[%clk
0:02:13.5]} 11... O-O-O {[%clk 0:02:10.4]} 12. Qe2 {[%clk 0:02:05.3]} 12... Kb8
{[%clk 0:02:03.3]} 13. Be3 {[%clk 0:01:48.1]} 13... Qxe4 {[%clk 0:01:50.2]} 14.
Rae1 {[%clk 0:01:26.9]} 14... Bc5 {[%clk 0:01:41]} 15. c3 {[%clk 0:01:12.8]}
15... f6 {[%clk 0:01:34.1]} 16. Qa6 {[%clk 0:00:57.7]} 16... Bb6 {[%clk
0:01:02.1]} 17. a4 {[%clk 0:00:49.2]} 17... Bc8 {[%clk 0:00:51.1]} 18. Qc4
{[%clk 0:00:47.7]} 18... Bb7 {[%clk 0:00:49.2]} 19. b4 {[%clk 0:00:45]} 19...
Qd5 {[%clk 0:00:42.1]} 20. Qe2 {[%clk 0:00:38.9]} 20... Rhe8 {[%clk 0:00:40.2]}
21. Rf5 {[%clk 0:00:21.8]} 21... Qd7 {[%clk 0:00:35.2]} 22. Qf2 {[%clk
0:00:16.4]} 22... Re7 {[%clk 0:00:23.2]} 23. Rf1 {[%clk 0:00:13.6]} 23... Rde8
{[%clk 0:00:22.8]} 24. Rf3 {[%clk 0:00:13.2]} 24... c5 {[%clk 0:00:21.1]} 25.
bxc5 {[%clk 0:00:12.2]} 25... Bxf3 {[%clk 0:00:18.8]} 26. cxb6 {[%clk
0:00:12.1]} 26... Bb7 {[%clk 0:00:18.6]} 27. bxa7+ {[%clk 0:00:11.2]} 27... Ka8
{[%clk 0:00:18.9]} 28. Bf4 {[%clk 0:00:10.1]} 28... c5 {[%clk 0:00:12.7]} 29.
Nb5 {[%clk 0:00:09.2]} 29... Qc6 {[%clk 0:00:11.2]} 30. Qg3 {[%clk 0:00:07.5]}
30... Rc8 {[%clk 0:00:08.5]} 31. Nd6 {[%clk 0:00:05.7]} 31... Re2 {[%clk
0:00:07.1]} 32. Nxb7 {[%clk 0:00:04.4]} 32... Qxb7 {[%clk 0:00:07.2]} 33. Bb8
{[%clk 0:00:04.8]} 33... Rxb8 {[%clk 0:00:03.4]} 34. axb8=Q+ {[%clk 0:00:02.7]}
34... Qxb8 {[%clk 0:00:04.3]} 35. h3 {[%clk 0:00:02.9]} 35... Qb7 {[%clk
0:00:04.3]} 36. Qg4 {[%clk 0:00:02.4]} 36... Qe4 {[%clk 0:00:04]} 0-1

[Event "Late-Titled-Tuesday-Blitz-October-24-2023"]
[Site "Chess.com"]
[Date "2023.10.24"]
[Round "4"]
[White "luksona14"]
[Black "maracayo"]
[Result "0-1"]
[WhiteElo "2558"]
[BlackElo "2384"]
[TimeControl "180+1"]
[EndTime "14:40:04 PDT"]
[Termination "maracayo won by checkmate"]

1. d4 {[%clk 0:02:54.1]} 1... d6 {[%clk 0:03:00.9]} 2. e4 {[%clk 0:02:52.4]}
2... Nf6 {[%clk 0:02:58.9]} 3. Nc3 {[%clk 0:02:52.1]} 3... c6 {[%clk 0:02:58.7]}
4. Nf3 {[%clk 0:02:49.3]} 4... Qa5 {[%clk 0:02:58.5]} 5. Bd3 {[%clk 0:02:48.7]}
5... e5 {[%clk 0:02:58.6]} 6. O-O {[%clk 0:02:47]} 6... Be7 {[%clk 0:02:58.1]}
7. h3 {[%clk 0:02:44.1]} 7... O-O {[%clk 0:02:57.3]} 8. Qe2 {[%clk 0:02:43.8]}
8... Nbd7 {[%clk 0:02:53.8]} 9. Be3 {[%clk 0:02:42.2]} 9... b5 {[%clk
0:02:45.1]} 10. a3 {[%clk 0:02:41.5]} 10... a6 {[%clk 0:02:44.6]} 11. Rfd1
{[%clk 0:02:37.9]} 11... Bb7 {[%clk 0:02:42.4]} 12. Nh4 {[%clk 0:02:28.8]} 12...
Rfe8 {[%clk 0:02:40.9]} 13. Nf5 {[%clk 0:02:28.1]} 13... Bf8 {[%clk 0:02:40.5]}
14. Qf3 {[%clk 0:02:21.5]} 14... Qc7 {[%clk 0:02:03.3]} 15. Qg3 {[%clk
0:02:14.5]} 15... Kh8 {[%clk 0:02:01.5]} 16. dxe5 {[%clk 0:02:09]} 16... dxe5
{[%clk 0:02:00.1]} 17. Bg5 {[%clk 0:01:51.2]} 17... c5 {[%clk 0:01:52.9]} 18. f3
{[%clk 0:01:47.4]} 18... c4 {[%clk 0:01:48.5]} 19. Be2 {[%clk 0:01:45.9]} 19...
Nh5 {[%clk 0:01:32.5]} 20. Qg4 {[%clk 0:01:40.1]} 20... Nf4 {[%clk 0:01:06.3]}
21. Bxf4 {[%clk 0:01:33.3]} 21... exf4 {[%clk 0:01:04.7]} 22. Bf1 {[%clk
0:01:31.6]} 22... Nf6 {[%clk 0:00:57]} 23. Qg5 {[%clk 0:01:30.5]} 23... Rad8
{[%clk 0:00:53.9]} 24. h4 {[%clk 0:01:20.8]} 24... Qe5 {[%clk 0:00:48.6]} 25.
Nh6 {[%clk 0:00:51.2]} 25... Qc5+ {[%clk 0:00:29]} 26. Kh1 {[%clk 0:00:41.3]}
26... Qe7 {[%clk 0:00:20.8]} 27. Nf5 {[%clk 0:00:40.9]} 27... Qe6 {[%clk
0:00:20.4]} 28. h5 {[%clk 0:00:34]} 28... h6 {[%clk 0:00:19.5]} 29. Qh4 {[%clk
0:00:31.6]} 29... Rxd1 {[%clk 0:00:17.3]} 30. Rxd1 {[%clk 0:00:31.3]} 30... Qe5
{[%clk 0:00:15.5]} 31. Ne2 {[%clk 0:00:31.2]} 31... Kh7 {[%clk 0:00:12.7]} 32.
Nxf4 {[%clk 0:00:31.2]} 32... g5 {[%clk 0:00:10.1]} 33. hxg6+ {[%clk 0:00:30.4]}
33... fxg6 {[%clk 0:00:11]} 34. Nxg6 {[%clk 0:00:20.3]} 34... Kxg6 {[%clk
0:00:10.7]} 35. Be2 {[%clk 0:00:16]} 35... Kh7 {[%clk 0:00:09.6]} 36. Rg1 {[%clk
0:00:13.7]} 36... Nxe4 {[%clk 0:00:08.6]} 37. fxe4 {[%clk 0:00:13.5]} 37... Bxe4
{[%clk 0:00:09.4]} 38. Ng3 {[%clk 0:00:13.1]} 38... Qg5 {[%clk 0:00:08.1]} 39.
Qxg5 {[%clk 0:00:12.7]} 39... hxg5 {[%clk 0:00:09]} 40. Nxe4 {[%clk 0:00:13.4]}
40... Rxe4 {[%clk 0:00:09.4]} 41. Re1 {[%clk 0:00:07.7]} 41... Rh4+ {[%clk
0:00:07.5]} 42. Kg1 {[%clk 0:00:08.3]} 42... Bc5+ {[%clk 0:00:08.3]} 43. Kf1
{[%clk 0:00:08.2]} 43... Rh1# {[%clk 0:00:09]} 0-1

[Event "Late-Titled-Tuesday-Blitz-October-24-2023"]
[Site "Chess.com"]
[Date "2023.10.24"]
[Round "4"]
[White "karinachess1"]
[Black "Vamostodorecto"]
[Result "0-1"]
[WhiteElo "2631"]
[BlackElo "2450"]
[TimeControl "180+1"]
[EndTime "14:40:10 PDT"]
[Termination "Vamostodorecto won by resignation"]

1. d4 {[%clk 0:03:00.9]} 1... d5 {[%clk 0:02:58.3]} 2. c4 {[%clk 0:03:01.1]}
2... e5 {[%clk 0:02:58.7]} 3. dxe5 {[%clk 0:02:59.7]} 3... Ne7 {[%clk
0:02:59.4]} 4. Nf3 {[%clk 0:02:57.5]} 4... Nbc6 {[%clk 0:02:59.1]} 5. cxd5
{[%clk 0:02:52.8]} 5... Qxd5 {[%clk 0:03:00]} 6. Qxd5 {[%clk 0:02:41.8]} 6...
Nxd5 {[%clk 0:03:00.9]} 7. a3 {[%clk 0:02:36.5]} 7... h6 {[%clk 0:03:00.8]} 8.
Bd2 {[%clk 0:02:18.1]} 8... g5 {[%clk 0:02:57]} 9. Nc3 {[%clk 0:02:17.3]} 9...
Be6 {[%clk 0:02:49]} 10. O-O-O {[%clk 0:02:06.5]} 10... O-O-O {[%clk 0:02:34.5]}
11. e3 {[%clk 0:01:55.2]} 11... Bg7 {[%clk 0:02:09]} 12. Bb5 {[%clk 0:01:39]}
12... Nxe5 {[%clk 0:02:00.2]} 13. Nd4 {[%clk 0:01:39.2]} 13... Nxc3 {[%clk
0:01:40.6]} 14. Bxc3 {[%clk 0:01:37.5]} 14... Bc4 {[%clk 0:01:41.2]} 15. Bxc4
{[%clk 0:01:09]} 15... Nxc4 {[%clk 0:01:42.1]} 16. Kc2 {[%clk 0:01:06.5]} 16...
Nd6 {[%clk 0:01:38.3]} 17. Rhe1 {[%clk 0:00:57]} 17... Ne4 {[%clk 0:01:29]} 18.
f3 {[%clk 0:00:56.9]} 18... Nxc3 {[%clk 0:01:23.2]} 19. bxc3 {[%clk 0:00:57.8]}
19... Bxd4 {[%clk 0:01:14.4]} 20. cxd4 {[%clk 0:00:55.3]} 20... Rhe8 {[%clk
0:01:02.2]} 21. Rd3 {[%clk 0:00:54.7]} 21... Rd6 {[%clk 0:00:53.5]} 22. e4
{[%clk 0:00:52]} 22... f6 {[%clk 0:00:43.4]} 23. d5 {[%clk 0:00:45.7]} 23... c6
{[%clk 0:00:40.8]} 24. Rc3 {[%clk 0:00:40]} 24... Rxd5 {[%clk 0:00:32]} 25. exd5
{[%clk 0:00:38]} 25... Rxe1 {[%clk 0:00:32.9]} 26. dxc6 {[%clk 0:00:38.7]} 26...
Re2+ {[%clk 0:00:31.5]} 27. Kd3 {[%clk 0:00:35.4]} 27... Rxg2 {[%clk 0:00:32.4]}
28. Ke4 {[%clk 0:00:33]} 28... Rxh2 {[%clk 0:00:29]} 29. Kf5 {[%clk 0:00:33.4]}
29... Rf2 {[%clk 0:00:27.2]} 30. Kxf6 {[%clk 0:00:30.6]} 30... g4 {[%clk
0:00:26.1]} 31. Kg6 {[%clk 0:00:21.6]} 31... Rxf3 {[%clk 0:00:24.9]} 32. Rc4
{[%clk 0:00:15.5]} 32... bxc6 {[%clk 0:00:20.1]} 33. Kxh6 {[%clk 0:00:10.9]}
33... g3 {[%clk 0:00:18.2]} 34. a4 {[%clk 0:00:10.2]} 34... Kb7 {[%clk
0:00:16.4]} 35. Kg5 {[%clk 0:00:06.8]} 35... Rf8 {[%clk 0:00:13.5]} 36. Rc1
{[%clk 0:00:02.7]} 36... g2 {[%clk 0:00:12.3]} 37. Rg1 {[%clk 0:00:01.9]} 37...
Rg8+ {[%clk 0:00:12.5]} 38. Kf4 {[%clk 0:00:02.8]} 38... Kb6 {[%clk 0:00:12.3]}
39. Ke4 {[%clk 0:00:03]} 39... Rg4+ {[%clk 0:00:10.3]} 40. Kd3 {[%clk
0:00:02.7]} 40... Ka5 {[%clk 0:00:09.2]} 41. Kc3 {[%clk 0:00:02.8]} 41... Kxa4
{[%clk 0:00:09.1]} 42. Kd3 {[%clk 0:00:02.6]} 42... Kb5 {[%clk 0:00:09.3]} 43.
Ke2 {[%clk 0:00:03.1]} 43... a5 {[%clk 0:00:09.4]} 44. Kf3 {[%clk 0:00:04]}
44... Rg8 {[%clk 0:00:08.6]} 45. Rxg2 {[%clk 0:00:04.4]} 45... Rxg2 {[%clk
0:00:07.8]} 46. Kxg2 {[%clk 0:00:05.3]} 46... Kb4 {[%clk 0:00:08.1]} 0-1